Cogmind - Beta 15 *** ADVENTURER MODE // 2025.07.24 @ 16:29:03 Player: willyarr Result: Destroyed by Y-45 Defender with Heavy Assault Rifle Performance ------------- Evolutions (0) 0 Regions Visited (4) 800 Robots Destroyed (25) 125 Value Destroyed (613) 613 Prototype IDs (0) 0 Alien Tech Used (0) 0 Bonus (0) 0 TOTAL SCORE: 1538 Bonus ------- None Cogmind --------- Core Integrity 0/250 Matter 285/300 Energy 125/125 System Corruption 0% Temperature Cool (9) Movement Rolling (100) Location -9/Recycling Parts ------- > --- POWER (1) -------- Light Ion Engine > --- PROPULSION (2) --- Compact Wheel Compact Wheel > --- UTILITY (2) ------ Large Storage Unit Visual Processing Unit > --- WEAPON (2) ------- Battle Cannon Battle Cannon > --- INVENTORY (15) --- Armored Wheel Armored Wheel Hover Unit Hover Unit Heat Sink Large Storage Unit Sensor Array Terrain Scan Processor EM Pulse Gun Subdweller Laser Autogun Datajack Flail Mining Claw Peak State ------------ > --- POWER ------------ Subdweller Power Source > --- PROPULSION ------- Compact Wheel Compact Wheel > --- UTILITY ---------- Large Storage Unit Visual Processing Unit > --- WEAPON ----------- Battle Cannon Battle Cannon > --- INVENTORY -------- Hover Unit Hover Unit Heat Sink Large Storage Unit Sensor Array EM Pulse Gun Subdweller Laser Datajack Mining Claw [Rating: 12] Favorites ----------- Power Ion Engine Engine Ion Engine Propulsion Compact Wheel Wheel Compact Wheel Utility Large Storage Unit Device Sensor Array Storage Large Storage Unit Processor Visual Processing Unit Weapon Small Laser Energy Gun Small Laser Energy Cannon Beam Cannon Ballistic Gun Assault Rifle Ballistic Cannon Battle Cannon Impact Weapon Flail Slashing Weapon Mining Claw Build | -11 -10 -10 -10 -9 ------- Run | Yrd Mat Min Sub Rec Slots Evolved . | . . . . . Power . | . . . . . Propulsion . | . . . . . Utility . | . . . . . Weapon . | . . . . . Parts Attached 24 | 6 4 . 12 2 Power 4 | 1 1 . 1 1 Engine 4 | 1 1 . 1 1 Core . | . . . . . Reactor . | . . . . . Propulsion 6 | 2 . . 4 . Treads . | . . . . . Leg . | . . . . . Wheel 6 | 2 . . 4 . Hover . | . . . . . Flight . | . . . . . Utility 5 | 1 2 . 2 . Device 2 | . 1 . 1 . Storage 2 | 1 1 . . . Processor 1 | . . . 1 . Hackware . | . . . . . Protection . | . . . . . Artifact . | . . . . . Weapon 9 | 2 1 . 5 1 Energy Gun 2 | 1 . . 1 . Energy Cannon 1 | . . . 1 . Ballistic Gun 2 | 1 1 . . . Ballistic Cannon 2 | . . . 2 . Launcher . | . . . . . Special Weapon . | . . . . . Impact Weapon 1 | . . . . 1 Slashing Weapon 1 | . . . 1 . Piercing Weapon . | . . . . . Special Melee Weapon . | . . . . . Unidentified Prototypes . | . . . . . Parts Lost 6 | . 1 . 5 . Power 3 | . 1 . 2 . Propulsion . | . . . . . Utility 2 | . . . 2 . Weapon 1 | . . . 1 . Highest Loss Streak 2 | . 1 . 2 . To Critical Strikes . | . . . . . Average Backups 12 | 3 13 15 13 11 Power . | . 1 1 . . Propulsion 3 | 1 5 4 3 2 Utility 4 | . 3 5 4 3 Weapon 3 | . 2 4 3 3 Tool/Special . | . . . . . Unused Backups 18 | . 6 . 1 11 Power 1 | . . . 1 . Propulsion 8 | . 4 . . 4 Utility 5 | . 1 . . 4 Weapon 3 | . 1 . . 2 Tool/Special 1 | . . . . 1 Average Slot Usage (%) 97 | . 99 100 98 85 Engine 11 | . 14 14 13 . Wheel 27 | . 28 28 27 28 Device 10 | . 13 14 11 . Storage 14 | . 14 14 14 14 Processor 3 | . . . 1 14 Energy Gun 10 | . 14 14 10 . Energy Cannon 3 | . . . 5 . Ballistic Gun 6 | . 14 14 4 . Ballistic Cannon 7 | . . . 6 24 Peak Build Rating 12 | 6 8 8 12 12 Average Rating 8 | 4 7 8 9 10 On Entrance 6 | . 6 8 8 10 Naked Turns . | . . . . . Heaviest Build 33 | 11 29 29 33 29 Greatest Support 40 | 32 32 32 40 32 Greatest Overweight (x) 3 | 3 . . 1 . Average Overweight (x) . | . . . . . Largest Inventory Capacity 15 | 8 15 15 15 15 Average Capacity 14 | 7 14 15 15 15 Most Carried 15 | 6 15 15 15 15 Average Carried 12 | 3 13 15 13 11 Final Capacity 15 | 8 15 15 15 15 Final Carried 15 | 6 15 15 9 14 Class Distribution -------------------- 100% | Mutant Dominant Class ---------------- Mutant | -10/Materials Mutant | -10/Mines Mutant | -10/Subcaves Mutant | -9/Recycling Resources | -11 -10 -10 -10 -9 ----------- Run | Yrd Mat Min Sub Rec Matter Collected 709 | 241 122 . 233 113 Remotely . | . . . . . Salvage Created 782 | . 290 . 313 179 Parts 40 | . 12 . 24 4 Haulers Intercepted . | . . . . . Recyclers Shooed . | . . . . . Parts Field Recycled . | . . . . . Retrieved Matter . | . . . . . Parts Self-Destructed 8 | . . . 8 . Prevented . | . . . . . Kills | -11 -10 -10 -10 -9 ------- Run | Yrd Mat Min Sub Rec Combat Hostiles Destroyed 17 | . 7 . 10 . Guns 11 | . 7 . 4 . Cannons 5 | . . . 5 . Classes Destroyed 7 | . 3 . 3 1 Recycler 3 | . . . . 3 Turret 2 | . . . 2 . Watcher 3 | . 3 . . . Swarmer 7 | . 3 . 4 . Grunt 4 | . 4 . . . Sentry 1 | . . . 1 . Subdweller 5 | . . . 5 . Best Kill Streak 4 | . 4 . 4 3 Combat Bots Only 4 | . 4 . 4 . Max Kills in Single Turn 2 | . 1 . 2 1 Gunslinging . | . . . . . Exploded . | . . . . . Melee . | . . . . . Uniques/NPCs Destroyed . | . . . . . Combat | -11 -10 -10 -10 -9 -------- Run | Yrd Mat Min Sub Rec Hostile Shots Fired 151 | . 38 . 111 2 Missed 60 | . 12 . 48 . Hits 91 | . 26 . 63 2 Projectile 91 | . 26 . 63 2 Critical Strikes 3 | . 2 . 1 . Damage Taken 777 | . 227 . 526 24 Core 250 | . 71 . 166 13 Absorbed by Shields . | . . . . . Ignored by Resistances 242 | . 70 . 165 7 Core Remaining (%) 100 | 100 . . . . Volleys Fired 77 | . 23 . 49 5 Largest 2 | . 2 . 2 1 Hottest 120 | . 60 . 120 33 Shots Fired 141 | . 40 . 96 5 Gun 73 | . 40 . 33 . Cannon 68 | . . . 63 5 Launcher . | . . . . . Special . | . . . . . Kinetic 64 | . 23 . 36 5 Thermal 77 | . 17 . 60 . Explosive . | . . . . . Electromagnetic . | . . . . . Robot Hit Streak 20 | . 9 . 18 20 Robot Miss Streak 2 | . 2 . 1 1 Penetration Max . | . . . . . Secondary Targets 1 | . 1 . . . Max Gunslinging Chain 1 | . 1 . . . Shots Hit Robots 90 | . 30 . 53 7 Core Hits 36 | . 18 . 17 1 Critical Kills 1 | . . . 1 . Critical Parts Destroyed 1 | . . . . 1 Critical Strikes 3 | . . . 2 1 Meltdown 1 | . . . 1 . Blast 1 | . . . 1 . Smash 1 | . . . . 1 Melee Attacks 8 | . . . 4 4 Impact 4 | . . . . 4 Slashing 4 | . . . 4 . Piercing . | . . . . . Sneak Attacks 3 | . . . . 3 Combat Hostiles . | . . . . . Follow-up Attacks . | . . . . . Damage Inflicted 1644 | . 384 . 987 273 Guns 850 | . 384 . 466 . Cannons 587 | . . . 521 66 Explosions . | . . . . . Melee 207 | . . . . 207 Ramming . | . . . . . Kinetic 463 | . 229 . 168 66 Thermal 974 | . 155 . 819 . Explosive . | . . . . . Electromagnetic . | . . . . . Impact 207 | . . . . 207 Slashing . | . . . . . Piercing . | . . . . . Highest Corruption . | . . . . . Average Corruption . | . . . . . Corruption Purged . | . . . . . Corruption Blocked . | . . . . . Overload Shots . | . . . . . Overflow Damage 60 | . . . 7 53 Projectiles 7 | . . . 7 . Explosions . | . . . . . Melee 53 | . . . . 53 Knockbacks 2 | . . . . 2 Impact 2 | . . . . 2 Kinetic . | . . . . . Secondary . | . . . . . Self-Inflicted Damage . | . . . . . Shots . | . . . . . Rammed . | . . . . . Targets Rammed . | . . . . . Kicked . | . . . . . Crushed . | . . . . . Highest Temperature 78 | . 68 . 78 . Average Temperature 33 | . 35 . 31 . Received Heat Transfer 387 | . 165 . 213 9 Siege Activations . | . . . . . Martial Activations . | . . . . . Shielding Activations . | . . . . . Robots Disrupted . | . . . . . Combat Hostiles . | . . . . . Robots Corrupted 2 | . . . . 2 Combat Hostiles . | . . . . . Parts Fried . | . . . . . Impact Corruptions 3 | . . . . 3 Robots Melted 1 | . . . 1 . Combat Hostiles 1 | . . . 1 . Parts Melted 3 | . . . 3 . Heat Transferred 1740 | . 350 . 1390 . Parts Sabotaged . | . . . . . Parts Stolen . | . . . . . Parts Stripped . | . . . . . Power Chain Reactions . | . . . . . Alert | -11 -10 -10 -10 -9 ------- Run | Yrd Mat Min Sub Rec Maximum Alert Level . | . . . . . Low Security (%) 100 | 100 100 100 . 100 Level 1 . | . . . . . Level 2 . | . . . . . Level 3 . | . . . . . Level 4 . | . . . . . Level 5 . | . . . . . High Security . | . . . . . Max Security . | . . . . . Peak Influence 123 | . 123 23 . 10 Initial 23 | . . 23 . . Average 18 | . 44 3 . . Influence Increases 446 | . 200 . 230 16 Destroy 0b10 Robot/C 280 | . 140 . 140 . Destroy 0b10 Robot/NC 30 | . 15 . . 15 Destroy Leader 36 | . 36 . . . Disable Machine 9 | . 9 . . . Destroy Structure 1 | . . . . 1 Lose Combat Pursuer 90 | . . . 90 . Influence Decreases 445 | . 130 70 230 15 Entered New Map 47 | . . 47 . . Time Decay 338 | . 120 23 180 15 Lost Part 60 | . 10 . 50 . Squads Dispatched . | . . . . . Investigation . | . . . . . Extermination . | . . . . . Reinforcement . | . . . . . Assault . | . . . . . Garrison . | . . . . . Intercept . | . . . . . Searches Triggered . | . . . . . Construction Impeded . | . . . . . Haulers Reinforced . | . . . . . Active Scanning Responses . | . . . . . Cargo Convoy Interrupts . | . . . . . Stealth | -11 -10 -10 -10 -9 --------- Run | Yrd Mat Min Sub Rec Distress Signals 1 | . 1 . . . Communications Jammed . | . . . . . Distress Signals . | . . . . . Times Spotted 26 | . 12 . 13 1 Peak Tracking Total 6 | . 5 . 6 . Tactical Retreats 3 | . . . 3 . Traps | -11 -10 -10 -10 -9 ------- Run | Yrd Mat Min Sub Rec Traps Triggered 1 | . . . 1 . Indirectly . | . . . . . Trap Hack Attempts . | . . . . . Triggered . | . . . . . Disarmed . | . . . . . Reprogrammed . | . . . . . Reused . | . . . . . Traps Extracted . | . . . . . Installed . | . . . . . Triggered . | . . . . . Machines | -11 -10 -10 -10 -9 ---------- Run | Yrd Mat Min Sub Rec Machines Disabled 2 | . 1 . 1 . Max in Single Turn 1 | . 1 . 1 . Machines Repaired . | . . . . . Machines Dismantled . | . . . . . Machines Sabotaged . | . . . . . Overloaded Fab Kills . | . . . . . Hacking | -11 -10 -10 -10 -9 --------- Run | Yrd Mat Min Sub Rec Machines Accessed 11 | . 5 . . 6 Terminals 8 | . 5 . . 3 Fabricators . | . . . . . Repair Stations . | . . . . . Recycling Units 3 | . . . . 3 Scanalyzers . | . . . . . Garrison Access . | . . . . . Total Hacks 24 | . 14 . . 10 Successful 10 | . 6 . . 4 Failed 14 | . 8 . . 6 Catastrophic 2 | . . . . 2 Database Lockouts . | . . . . . Manual 14 | . 8 . . 6 Terminals 21 | . 14 . . 7 Fabricators . | . . . . . Repair Stations . | . . . . . Recycling Units 3 | . . . . 3 Scanalyzers . | . . . . . Garrison Access . | . . . . . Terminal Hacks 7 | . 6 . . 1 Record 1 | . 1 . . . Branch Access Points 1 | . 1 . . . Alert Level 1 | . 1 . . . Locate Traps 1 | . 1 . . . Registered Prototypes 1 | . 1 . . . Zone Layout 2 | . 1 . . 1 Fabricator Hacks . | . . . . . Repair Station Hacks . | . . . . . Recycling Unit Hacks 3 | . . . . 3 Report Inventory 3 | . . . . 3 Scanalyzer . | . . . . . Garrison Access Hacks . | . . . . . Unauthorized Hacks . | . . . . . Terminals . | . . . . . Fabricators . | . . . . . Repair Stations . | . . . . . Recycling Units . | . . . . . Scanalyzers . | . . . . . Garrison Access . | . . . . . Data Cores Recovered . | . . . . . Used . | . . . . . Hacking Detections 7 | . 3 . . 4 Full Trace Events . | . . . . . Feedback Events . | . . . . . Feedback Blocked . | . . . . . Robot Schematics Acquired . | . . . . . Robots Built . | . . . . . Authchips . | . . . . . Time . | . . . . . Total Robot Build Rating . | . . . . . Part Schematics Acquired . | . . . . . Parts Built . | . . . . . Authchips . | . . . . . Time . | . . . . . Total Part Build Rating . | . . . . . Parts Repaired . | . . . . . Time . | . . . . . Parts Recycled . | . . . . . Recycled Matter . | . . . . . Retrieved Matter . | . . . . . Retrieved Components . | . . . . . Parts Scanalyzed . | . . . . . Part Schematics Acquired . | . . . . . Parts Damaged . | . . . . . Bothacking | -11 -10 -10 -10 -9 ------------ Run | Yrd Mat Min Sub Rec Used RIF Installer . | . . . . . Robots Hacked . | . . . . . Non-combat . | . . . . . Combat . | . . . . . Robot Hacks Applied . | . . . . . Relay Couplers Released . | . . . . . Fabnet Peak Effective % . | . . . . . Robots Rewired . | . . . . . Allies Hacked . | . . . . . Hacks Repelled . | . . . . . Allies | -11 -10 -10 -10 -9 -------- Run | Yrd Mat Min Sub Rec Total Allies . | . . . . . Largest Group . | . . . . . Highest-Rated Group . | . . . . . Highest-Rated Ally . | . . . . . Total Orders . | . . . . . Ally Attacks . | . . . . . Total Damage . | . . . . . Kills . | . . . . . Allies Corrupted . | . . . . . Allies Melted . | . . . . . Intel | -11 -10 -10 -10 -9 ------- Run | Yrd Mat Min Sub Rec Active Infowar (turns) 2169 | . 415 238 1201 315 Optics 473 | . . . 158 315 Sensors 1269 | . 415 238 616 . Structural 427 | . . . 427 . Robot Analysis Total . | . . . . . Derelict Logs Recovered 1 | . . . 1 . Drone Launches . | . . . . . Drone Recoveries . | . . . . . Exploration | -11 -10 -10 -10 -9 ------------- Run | Yrd Mat Min Sub Rec Turns Passed 2286 | 80 431 238 1222 315 Spaces Moved 1939 | 58 343 239 1013 286 Core 16 | 16 . . . . Treads . | . . . . . Legs . | . . . . . Wheels 1923 | 42 343 239 1013 286 Hover . | . . . . . Flight . | . . . . . Fastest Speed 50 | 50 100 100 100 100 Average Speed 101 | 108 100 100 102 100 Slowest Speed 200 | 200 100 100 120 100 Overloaded Moves . | . . . . . Propulsion Burnouts . | . . . . . Robots Hopped . | . . . . . Potential Cave-ins . | . . . . . Cave-ins Triggered . | . . . . . Exploration Rate (%) 44 | 4 65 50 52 51 Regions Visited 4 Branch Regions 3 Pre-discovered Areas 1 | . . 1 . . Known Exits Taken 1 | . 1 . . . Unknown Exits Taken 3 | 1 . 1 1 . Scrap Searched . | . . . . . Spaces Dug 3 | . . . 3 . Terrain Destroyed 4 | . . . 3 1 Melee . | . . . . . Projectile 4 | . . . 3 1 AOE . | . . . . . Terrain Rammed . | . . . . . Walls Destroyed . | . . . . . Machines Disabled . | . . . . . Actions | -11 -10 -10 -10 -9 --------- Run | Yrd Mat Min Sub Rec Total 2103 | 75 395 238 1091 304 Wait 1 | . 1 . . . Move 1935 | 57 342 238 1012 286 Hop . | . . . . . Pick Up 38 | 12 17 . 3 6 Fast Attach . | . . . . . Attach 15 | 6 2 . 6 1 Detach . | . . . . . Swap 13 | . 2 . 9 2 Drop 16 | . 8 . 8 . Fire 77 | . 23 . 49 5 Melee 8 | . . . 4 4 Ram . | . . . . . Kick . | . . . . . Crush . | . . . . . Escape Stasis . | . . . . . Rewire . | . . . . . Trap . | . . . . . Miscellaneous . | . . . . . Route ------- -11/Scrapyard -10/Materials (discovered 2 exits: [*Mat] / *Min) -10/Mines -10/Subcaves (discovered 2 exits: [*Mat] / *Rec) -9/Recycling History --------- Turn | Location | Event 8 | -11/Scrapyard | Discovered new exit (range 15) 81 | -11/Scrapyard | Entered Materials 221 | -10/Materials | Identified exit to Mines 309 | -10/Materials | Build established: Mutant 435 | -10/Materials | Discovered new exit (range 16) 512 | -10/Materials | Entered Mines 600 | -10/Mines | Learned location of Storage (-9) 744 | -10/Mines | Discovered new exit (range 5) 750 | -10/Mines | Entered Subcaves 751 | -10/Subcaves | Approached by a straggling Scientist 1297 | -10/Subcaves | Learned Materials trap positions 1358 | -10/Subcaves | Shifting Twisted Machinery released Battle Cannon 1359 | -10/Subcaves | Shifting Twisted Machinery released Battle Cannon 1373 | -10/Subcaves | Discovered new exit (range 11) 1377 | -10/Subcaves | Shifting Twisted Machinery released Barrage Gun 1498 | -10/Subcaves | A swath of the cavern ceiling suddenly collapsed 1578 | -10/Subcaves | Core integrity fell below 50% 1636 | -10/Subcaves | A swath of the cavern ceiling suddenly collapsed 1675 | -10/Subcaves | Core integrity fell below 20% 1687 | -10/Subcaves | Discovered new exit (range 16) 1972 | -10/Subcaves | Entered Recycling 2287 | -9/Recycling | Destroyed by Y-45 Defender with Heavy Assault Rifle Last Messages --------------- corrupted. 02256_ R-06 Scavenger collects Corrupted Com. Wheel. 02257_ Acquired 1 matter. 02259_ Acquired Lgt. Ion Engine. 02261_ Sneak attack on R-06 Scavenger. 02261_ R-06 Scavenger knocked back. 02264_ Acquired 95 matter. 02265_ R-06 Scavenger suffers critical hit (Smash). 02265_ Destroyed Com. Wheel. 02265_ Destroyed Lgt. Ion Engine. 02265_ R-06 Scavenger system corrupted by crushing effect. 02266_ R-06 Scavenger system terminally corrupted. 02268_ Acquired 15 matter. 02273_ R-06 Scavenger collects Corrupted Com. Wheel. 02287_ Y-45 Defender springs to life. Map ----- +----------------------------------------------------+ | ??????????????????????????????????? | | ??????????????????????????????????? | | ??????????????????????????????????? | | ??????????????????????????????????? | | ??????????????????????????????????? | | ??????????????????????????????????? | | ??????????????????????????????????? | | ??????????????????????????????????? | | ??????????????????????????????????? | | ??????????????????????????????????? | | ??????????????????????????????????? | | ??????????????????????????????????? | | ??????????????????????????????????? | | ?????????????????????##########???? | | ?????????????????????# """" #???? | | ?????????????????????# """" #???? | | ????##???????????????# """" #???? | | ????? ???????????????# """" #???? | | ?????# ??????????????# #???? | | ????## ??????????????# #???? | | ????#Y ?????????????# #???? | | ????#; ?#####???????# #???? | | ?????# #"""#???????# #??## | | ?????# #"Y"###########+#########" | | ?????# | | ?????# @ u | | ?????# | | ?????##T########## | | ??????##?????????# """ """ """ | | ????############## """ """ """ | | ????# # """ """ """ | | ????# # %% | | ????# [ # | | ????# + | | ????# # | | ????# # #######+## | | ????# [ ] [# # | | ????# + + | | ????# ######### | | ????# #???????# | | ????# #???????# | | ????# !=! ! #???????# | | ????##############???????# | | ?????????????????????????# | | ?????????????????????????###### # # | | ??????????????????????????????##### | | ??????????????????????????????????? | | ??????????????????????????????????? | | ??????????????????????????????????? | | ??????????????????????????????????? | +----------------------------------------------------+ Best States ------------- Heat Dissipation 25 Energy Generation 15 Energy Capacity 250 Matter Stores 300 Matter Capacity 300 Sight Range 18 Robot Scan Range 14 Terrain Scan Density 10 Resistance: KI 20 Resistance: TH 20 Resistance: EX 20 Resistance: EM 20 Resistance: I 20 Resistance: S 20 Resistance: P 20 Evasion (%) 40 Offensive Hacking 10 Item Schematics ----------------- None Robot Schematics ------------------ None Fabricated ------------ Nothing Repaired ---------- Nothing Alien Tech Used ----------------- None Achievements -------------- None Challenges ------------ None Game ------ Seed BlanketIntegrityHammer Manual? 0 Play Time 00:25:03 Cumulative 15.6 hours Start 2025.07.24 @ 16:01:28 End 2025.07.24 @ 16:29:03 Sessions 1 Manual Loads 0 Difficulty Adventurer Special Mode None Game No. 12 Rogue 0 Adventurer 12 Explorer 0 Win Type - Total 0 Types 0/0/0/0/0/0/0/0/0/0 Lore% 11 Gallery% 22 Achievement% 20 Wizard Run 0 Options --------- Layout 1 ASCII 0 Keyboard 0 Movement Mouse Keybinds 0 Fullscreen 1 Font 24/Smallcaps Map View 50x35 Zoom Use 0% Tactical HUD 1 Map Filters NONE Filters NONE Steam 1 RUN: fed63e83-bf41-4253-8ab7-9639b820aeba